fUSD/lending_fUSD_20241125
["ID","MTS","AMOUNT","RATE_DAILY","PERIOD"]
[343231886,1732507835758,-586.21,0.00044902,30]
[343231887,1732507835768,-155.37,0.00044963,120]
[343231888,1732507835778,-228.70864712,0.00044965,120]
[343231889,1732507835788,-15024.53,0.00045,30]
[343231890,1732507835799,-3550.59060714,0.00045005,2]
[343231891,1732507835809,-765.32,0.00045041,30]
[343231892,1732507835819,-500.0,0.00045095,2]
[343231893,1732507835829,-906.07,0.00045095,2]
[343231894,1732507835839,-500.0,0.00045095,2]
[343231895,1732507835850,-7787.8,0.00045095,2]
[343231896,1732507835859,-500.0,0.00045095,2]
[343231897,1732507835870,-523.71,0.00045095,2]
[343231898,1732507835879,-500.0,0.00045095,2]
[343231899,1732507835889,-33686.74,0.00045095,2]
[343231900,1732507835898,-500.0,0.00045095,2]
[343231901,1732507835908,-5628.28,0.00045095,2]
[343231902,1732507835919,-500.0,0.00045095,2]
[343231903,1732507835928,-1426.56,0.00045095,2]
[343231904,1732507835938,-500.0,0.00045095,2]
[343231905,1732507835948,-642.68,0.00045095,2]
[343231906,1732507835958,-300.6622671,0.00045095,2]
[343231907,1732507835967,-169.55,0.00045174,120]
[343231908,1732507835976,-451.76,0.00045241,30]
[343231909,1732507835987,-794.55,0.00045241,30]
[343231910,1732507835997,-649.83,0.00045397,30]
[343231911,1732507836007,-301.35,0.00045397,30]
[343231912,1732507836016,-315.86,0.00045397,30]
[343231913,1732507836025,-332.33,0.00045397,30]
[343231914,1732507836035,-305.25,0.00045397,30]
[343231915,1732507836045,-793.79563869,0.000455,15]
[343231916,1732507836054,-5000.0,0.00045544,2]
[343231917,1732507836064,-2336.19592519,0.00045599,14]
[343231918,1732507836073,-5371.63,0.00045599,2]
[343231919,1732507836083,-500.0,0.00045599,2]
[343231920,1732507836093,-4098.77,0.00045599,2]
[343231921,1732507836102,-5672.28,0.00045599,2]
[343231922,1732507836111,-500.0,0.00045599,2]
[343231923,1732507836121,-6350.46,0.00045599,2]
[343231924,1732507836131,-8389.06,0.00045599,2]
[343231925,1732507836141,-19325.25,0.00045599,2]
[343231926,1732507836150,-500.0,0.00045599,2]
[343231927,1732507836160,-8349.61,0.00045599,14]
[343231928,1732507836208,-624.15379539,0.000456,120]
[343231929,1732507836218,-5000.0,0.000456,120]
[343231930,1732507836227,-3750.0,0.000456,120]
[343231931,1732507836238,-9622.26129675,0.000456,30]
[343231932,1732507836248,-662.069,0.000456,74]
[343231933,1732507836258,-744.72853,0.0004564,29]
[343231934,1732507836268,-500.0,0.00045643,2]
[343231935,1732507836278,-500.0,0.00045643,2]
[343231936,1732507836288,-500.0,0.00045643,2]
[343231937,1732507836297,-500.0,0.00045643,2]
[343231938,1732507836307,-1374.68,0.00045643,2]
[343231939,1732507836318,-500.0,0.00045643,2]
[343231940,1732507836328,-500.0,0.00045643,2]
[343231941,1732507836338,-158.931534,0.00045643,2]
[343231942,1732507836348,-500.0,0.00045643,2]
[343231943,1732507836358,-500.0,0.00045643,2]
[343231944,1732507836368,-500.0,0.00045643,2]
[343231945,1732507836378,-500.0,0.00045643,2]
[343231946,1732507836387,-500.0,0.00045643,2]
[343231947,1732507836396,-500.0,0.00045643,2]
[343231948,1732507836406,-348.53678081,0.00045643,2]
[343231949,1732507836415,-4136.13,0.00045643,2]
[343231950,1732507836427,-5037.37,0.00045643,2]
[343231951,1732507836436,-10987.74,0.00045643,2]
[343231952,1732507836446,-500.0,0.00045643,2]
[343231953,1732507836455,-500.0,0.00045643,2]
[343231954,1732507836465,-10046.05,0.00045643,2]
[343231955,1732507836475,-500.0,0.00045643,2]
[343231956,1732507836485,-906.07,0.00045643,2]
[343231957,1732507836494,-500.0,0.00045643,2]
[343231958,1732507836503,-4952.22,0.00045643,2]
[343231959,1732507836513,-7787.8,0.00045643,2]
[343231960,1732507836522,-765.44,0.00045643,2]
[343231961,1732507836532,-513.89,0.00045643,2]
[343231962,1732507836541,-500.0,0.00045643,2]
[343231963,1732507836550,-5759.88,0.00045643,2]
[343231964,1732507836559,-523.71,0.00045643,2]
[343231965,1732507836569,-500.0,0.00045643,2]
[343231966,1732507836578,-500.0,0.00045643,2]
[343231967,1732507836587,-500.0,0.00045643,2]
[343231968,1732507836597,-598.2,0.00045643,2]
[343231969,1732507836605,-33686.74,0.00045643,2]
[343231970,1732507836615,-500.0,0.00045643,2]
[343231971,1732507836624,-500.0,0.00045643,2]
[343231972,1732507836633,-500.0,0.00045643,2]
[343231973,1732507836643,-5628.28,0.00045643,2]
[343231974,1732507836652,-500.0,0.00045643,2]
[343231975,1732507836662,-500.0,0.00045643,2]
[343231976,1732507836674,-500.0,0.00045643,2]
[343231977,1732507836684,-1426.56,0.00045643,2]
[343231978,1732507836694,-500.0,0.00045643,2]
[343231979,1732507836703,-500.0,0.00045643,2]
[343231980,1732507836713,-642.68,0.00045643,2]
[343231981,1732507836722,-151.0,0.00045643,14]
[343231982,1732507836731,-500.0,0.00045643,2]
[343231983,1732507836740,-7479.07,0.00045643,2]
[343231984,1732507836750,-269.486392,0.00045643,14]
[343231985,1732507836760,-2499.62,0.00045643,2]
[343231986,1732507836770,-5000.0,0.00045644,120]
[343231987,1732507836780,-3750.0,0.00045655,120]
[343231988,1732507836789,-339.88652908,0.00045688,2]
[343231989,1732507836801,-575.9555,0.00045899,2]
[343231990,1732507836810,-793.79563863,0.00045933,15]
[343231991,1732507836819,-339.88652908,0.00045946,2]
[343231992,1732507836828,-577.26746081,0.00045973,10]
[343231993,1732507836837,-500.0,0.00045973,10]
[343231994,1732507836848,-524.16481232,0.00045973,30]
[343231995,1732507836858,-217.38213865,0.00045973,30]
[343231996,1732507836867,-163.67838026,0.00045973,30]
[343231997,1732507836877,-150.0,0.00045973,30]
[343231998,1732507836886,-150.0,0.00045973,30]
[343231999,1732507836895,-150.0,0.00045973,30]
[343232000,1732507836904,-150.0,0.00045973,30]
[343232001,1732507836913,-500.0,0.00045996,2]
[343232002,1732507836923,-367.26995758,0.00045996,2]
[343232003,1732507836933,-221.10256281,0.00045996,2]
[343232004,1732507836942,-500.0,0.00045996,2]
[343232005,1732507836951,-525.81748848,0.00045996,2]
[343232006,1732507836961,-500.0,0.00045996,2]
[343232007,1732507836970,-500.0,0.00045996,2]
[343232008,1732507836979,-500.0,0.00045996,2]
[343232009,1732507836989,-500.0,0.00045996,2]
[343232010,1732507836998,-1738.26,0.00045996,2]
[343232011,1732507837008,-500.0,0.00045996,2]
[343232012,1732507837017,-500.0,0.00045996,2]
[343232013,1732507837026,-500.0,0.00045996,2]
[343232014,1732507837035,-500.0,0.00045996,2]
[343232015,1732507837044,-500.0,0.00045996,2]
[343232016,1732507837053,-500.0,0.00045996,2]
[343232017,1732507837062,-518.65678462,0.00045996,2]
[343232018,1732507837071,-214.94838231,0.00045996,2]
[343232019,1732507837081,-500.0,0.00045996,2]
[343232020,1732507837090,-500.0,0.00045996,2]
[343232021,1732507837099,-500.0,0.00045996,120]
[343232022,1732507837109,-226.78503853,0.00045996,2]
[343232023,1732507837118,-500.0,0.00045996,2]
[343232024,1732507837127,-500.0,0.00045996,2]
[343232025,1732507837136,-500.0,0.00045996,2]
[343232026,1732507837146,-500.0,0.00045996,2]
[343232027,1732507837155,-500.0,0.00045996,2]
[343232028,1732507837164,-499.20153088,0.00045996,2]
[343232029,1732507837176,-495.77060351,0.00045996,2]
[343232030,1732507837186,-240.62522791,0.00045996,2]
[343232031,1732507837195,-168.0,0.00045996,2]
[343232032,1732507837205,-500.0,0.00045996,2]
[343232033,1732507837215,-500.0,0.00045996,2]
[343232034,1732507837225,-500.0,0.00045996,2]
[343232035,1732507837234,-500.0,0.00045996,2]
[343232036,1732507837243,-500.0,0.00045996,2]
[343232037,1732507837252,-500.0,0.00045996,2]
[343232038,1732507837261,-549.1467638,0.00045996,2]
[343232039,1732507837270,-500.0,0.00045996,2]
[343232040,1732507837279,-500.0,0.00045996,2]
[343232041,1732507837288,-500.0,0.00045996,2]
[343232042,1732507837297,-500.0,0.00045996,2]
[343232043,1732507837307,-500.0,0.00045996,2]
[343232044,1732507837316,-500.0,0.00045996,2]
[343232045,1732507837325,-565.77549651,0.00045996,2]
[343232046,1732507837334,-500.0,0.00045996,2]
[343232047,1732507837343,-500.0,0.00045996,2]
[343232048,1732507837352,-519.90172275,0.00045996,2]
[343232049,1732507837361,-500.0,0.00045996,2]
[343232050,1732507837370,-500.0,0.00045996,2]
[343232051,1732507837379,-500.0,0.00045996,2]
[343232052,1732507837388,-500.0,0.00045996,2]
[343232053,1732507837397,-500.0,0.00045996,2]
[343232054,1732507837407,-500.0,0.00045996,2]
[343232055,1732507837416,-500.0,0.00045996,2]
[343232056,1732507837428,-500.0,0.00045996,2]
[343232057,1732507837438,-523.90595432,0.00045996,2]
[343232058,1732507837447,-500.0,0.00045996,2]
[343232059,1732507837456,-359.2660288,0.00045996,2]
[343232060,1732507837466,-500.0,0.00045996,2]
[343232061,1732507837475,-500.0,0.00045996,2]
[343232062,1732507837484,-500.0,0.00045996,2]
[343232063,1732507837493,-500.0,0.00045996,2]
[343232064,1732507837503,-500.0,0.00045996,2]
[343232065,1732507837513,-500.0,0.00045996,2]
[343232066,1732507837522,-500.0,0.00045996,2]
[343232069,1732507837531,-500.0,0.00045996,2]
[343232070,1732507837540,-500.0,0.00045996,2]
[343232071,1732507837549,-500.0,0.00045996,2]
[343232072,1732507837559,-500.0,0.00045996,2]
[343232073,1732507837568,-500.0,0.00045996,2]
[343232074,1732507837576,-500.0,0.00045996,2]
[343232075,1732507837585,-500.0,0.00045996,2]
[343232076,1732507837595,-500.0,0.00045996,2]
[343232077,1732507837603,-158.83432121,0.00045996,2]
[343232078,1732507837612,-500.0,0.00045996,2]
[343232079,1732507837622,-500.0,0.00045996,2]
[343232080,1732507837631,-500.0,0.00045996,2]
[343232081,1732507837640,-500.0,0.00045996,2]
[343232082,1732507837650,-222.17653235,0.00045996,2]
[343232083,1732507837659,-500.0,0.00045996,2]
[343232084,1732507837670,-536.44113958,0.00045996,2]
[343232085,1732507837680,-500.0,0.00045996,2]
[343232086,1732507837690,-500.0,0.00045996,2]
[343232087,1732507837699,-500.0,0.00045996,2]
[343232088,1732507837709,-500.0,0.00045996,2]
[343232089,1732507837718,-513.83495714,0.00045996,2]
[343232090,1732507837728,-500.0,0.00045996,2]
[343232091,1732507837737,-500.0,0.00045996,2]
[343232092,1732507837747,-500.0,0.00045996,2]
[343232093,1732507837761,-500.0,0.00045996,2]
[343232094,1732507837771,-500.0,0.00045996,2]
[343232095,1732507837780,-500.0,0.00045996,2]
[343232096,1732507837790,-524.77603486,0.00045996,2]
[343232097,1732507837801,-500.0,0.00045996,2]
[343232098,1732507837811,-500.0,0.00045996,2]
[343232099,1732507837820,-500.0,0.00045996,2]
[343232100,1732507837829,-500.0,0.00045996,2]
[343232101,1732507837839,-500.0,0.00045996,2]
[343232102,1732507837848,-500.0,0.00045996,2]
[343232103,1732507837858,-500.0,0.00045996,2]
[343232104,1732507837867,-500.0,0.00045996,2]
[343232105,1732507837876,-500.0,0.00045996,2]
[343232106,1732507837885,-500.0,0.00045996,2]
[343232107,1732507837895,-517.25622094,0.00045996,2]
[343232108,1732507837904,-500.0,0.00045996,2]
[343232109,1732507837913,-500.0,0.00045996,2]
[343232110,1732507837925,-500.0,0.00045996,2]
[343232111,1732507837935,-500.0,0.00045996,2]
[343232112,1732507837944,-1000.0,0.00045996,2]
[343232113,1732507837953,-500.0,0.00045996,2]
[343232114,1732507837962,-500.0,0.00045996,2]
[343232115,1732507837971,-500.0,0.00045996,2]
[343232116,1732507837981,-500.0,0.00045996,2]
[343232117,1732507837990,-500.0,0.00045996,2]
[343232118,1732507837999,-500.0,0.00045996,2]
[343232119,1732507838009,-500.0,0.00045996,2]
[343232120,1732507838018,-522.43068647,0.00045996,2]
[343232121,1732507838027,-500.0,0.00045996,2]
[343232122,1732507838037,-505.39046739,0.00045996,2]
[343232123,1732507838046,-521.34204524,0.00045996,2]
[343232124,1732507838056,-500.0,0.00045996,2]
[343232125,1732507838065,-500.0,0.00045996,2]
[343232126,1732507838074,-500.0,0.00045996,2]
[343232127,1732507838083,-516.65841135,0.00045996,2]
[343232128,1732507838092,-500.0,0.00045996,2]
[343232129,1732507838102,-500.0,0.00045996,2]
[343232130,1732507838111,-500.0,0.00045996,2]
[343232131,1732507838120,-500.0,0.00045996,2]
[343232132,1732507838129,-500.0,0.00045996,2]
[343232133,1732507838139,-506.63290378,0.00045996,2]
[343232134,1732507838149,-500.0,0.00045996,2]
[343232135,1732507838159,-500.0,0.00045996,2]
[343232136,1732507838171,-500.0,0.00045996,2]
[343232137,1732507838181,-500.0,0.00045996,2]
[343232138,1732507838191,-500.0,0.00045996,2]
[343232139,1732507838201,-500.0,0.00045996,2]
[343232140,1732507838211,-500.0,0.00045996,2]
[343232141,1732507838220,-535.09388831,0.00045996,2]
[343232142,1732507838230,-500.0,0.00045996,2]
[343232143,1732507838240,-500.0,0.00045996,2]
[343232144,1732507838250,-500.0,0.00045996,2]
[343232145,1732507838260,-500.0,0.00045996,2]
[343232146,1732507838269,-500.0,0.00045996,2]
[343232147,1732507838279,-500.0,0.00045996,2]
[343232148,1732507838288,-500.0,0.00045996,2]
[343232149,1732507838297,-500.0,0.00045996,2]
[343232150,1732507838306,-491.60318997,0.00045996,2]
[343232151,1732507838316,-5712.74,0.00045996,2]
[343232152,1732507838325,-454.58970535,0.00045996,2]
[343232153,1732507838335,-500.0,0.00045996,2]
[343232154,1732507838344,-500.0,0.00045996,2]
[343232155,1732507838353,-500.0,0.00045996,2]
[343232156,1732507838362,-500.0,0.00045996,2]
[343232157,1732507838371,-500.0,0.00045996,2]
[343232158,1732507838380,-754.14,0.00045996,2]
[343232159,1732507838390,-500.0,0.00045996,2]
[343232160,1732507838399,-500.0,0.00045996,2]
[343232161,1732507838408,-597.87,0.00045996,2]
[343232162,1732507838418,-513.25487139,0.00045996,2]
[343232164,1732507838428,-1982.66,0.00045996,2]
[343232165,1732507838438,-516.19492665,0.00045996,2]
[343232166,1732507838447,-500.0,0.00045996,2]
[343232167,1732507838456,-500.0,0.00045996,2]
[343232168,1732507838465,-500.0,0.00045996,2]
[343232169,1732507838475,-500.0,0.00045996,2]
[343232171,1732507838484,-241.31189671,0.00045996,2]
[343232172,1732507838493,-518.78537055,0.00045996,2]
[343232173,1732507838503,-500.0,0.00045996,2]
[343232174,1732507838514,-500.0,0.00045996,2]
[343232175,1732507838523,-222.7506578,0.00045996,2]
[343232176,1732507838532,-500.0,0.00045996,2]
[343232177,1732507838542,-500.0,0.00045996,2]
[343232178,1732507838552,-500.0,0.00045996,2]
[343232179,1732507838561,-500.0,0.00045996,2]
[343232180,1732507838570,-500.0,0.00045996,2]
[343232181,1732507838579,-440.84119725,0.00045996,2]
[343232182,1732507838588,-500.0,0.00045996,2]
[343232183,1732507838598,-500.0,0.00045996,2]
[343232184,1732507838607,-362.77000705,0.00045996,2]
[343232185,1732507838616,-280.43854877,0.00045996,2]
[343232186,1732507838625,-500.0,0.00045996,2]
[343232187,1732507838634,-500.0,0.00045996,2]
[343232188,1732507838643,-500.0,0.00045996,2]
[343232189,1732507838653,-534.9710203,0.00045996,2]
[343232190,1732507838662,-1085.62,0.00045996,2]
[343232191,1732507838674,-164.34147241,0.00045997,2]
[343232192,1732507838683,-504.93128085,0.00045997,2]
[343232193,1732507838692,-657.22,0.00045997,2]
[343232194,1732507838702,-465.0,0.00045997,2]
[343232195,1732507838711,-500.0,0.00045997,2]
[343232196,1732507838720,-551.22946256,0.00045997,2]
[343232197,1732507838729,-513.17683706,0.00045997,2]
[343232198,1732507838739,-505.9764784,0.00045997,2]
[343232199,1732507838748,-500.0,0.00045997,2]
[343232200,1732507838758,-500.0,0.00045997,2]
[343232201,1732507838771,-500.0,0.00045997,2]
[343232202,1732507838781,-500.0,0.00045997,2]
[343232203,1732507838791,-500.0,0.00045997,2]
[343232204,1732507838800,-500.0,0.00045997,2]
[343232205,1732507838809,-98.31476774,0.00045997,2]
[343232206,1732507839031,-500.0,0.00043999,2]
[343232207,1732507839041,-500.0,0.00044547,2]
[343232208,1732507839051,-500.0,0.00045095,2]
[343232209,1732507839060,-500.0,0.00045643,2]
[343232210,1732507839070,-385.47819203,0.00045997,2]
[343232211,1732507839081,-16.20704023,0.00045997,2]
[343232212,1732507839091,-1576.21753844,0.00045997,2]
[343232213,1732507839102,-323.79921957,0.00045997,2]
[343232214,1732507839185,-3004.09324199,0.00045997,2]
[343232215,1732507839195,-113.65949342,0.00045997,2]
[343232216,1732507839523,-403.06649246,0.00045997,2]
[343232217,1732507839533,-500.0,0.00045997,2]
[343232218,1732507839542,-500.0,0.00045997,2]
[343232219,1732507839557,-500.0,0.00045997,2]
[343232220,1732507839576,-500.0,0.00045997,2]
[343232221,1732507839585,-500.0,0.00045997,2]
[343232222,1732507839595,-500.0,0.00045997,2]
[343232223,1732507839604,-500.0,0.00045997,2]
[343232224,1732507839613,-500.0,0.00045997,2]
[343232225,1732507839623,-500.0,0.00045997,2]
[343232226,1732507839632,-500.0,0.00045997,2]
[343232227,1732507839642,-500.0,0.00045997,2]
[343232228,1732507839651,-500.0,0.00045997,2]
[343232229,1732507839661,-5578.33,0.00045997,2]
[343232230,1732507839671,-500.0,0.00045997,2]
[343232231,1732507839681,-500.0,0.00045997,2]
[343232232,1732507839690,-500.0,0.00045997,2]
[343232233,1732507839700,-500.0,0.00045997,2]
[343232234,1732507839709,-512.78020611,0.00045997,2]
[343232235,1732507839718,-500.0,0.00045997,2]
[343232236,1732507839728,-7026.36,0.00045997,2]
[343232237,1732507839737,-500.0,0.00045997,2]
[343232238,1732507839747,-500.0,0.00045997,2]
[343232239,1732507839757,-633.65,0.00045997,2]
[343232240,1732507839768,-500.0,0.00045997,2]
[343232241,1732507839778,-500.0,0.00045997,2]
[343232242,1732507839790,-500.0,0.00045997,2]
[343232243,1732507839803,-2643.62,0.00045997,2]
[343232244,1732507839812,-5869.7,0.00045997,2]
[343232245,1732507839822,-7445.21,0.00045997,2]
[343232246,1732507839831,-500.0,0.00045997,2]
[343232247,1732507839841,-500.0,0.00045997,2]
[343232248,1732507839852,-512.36995815,0.00045997,2]
[343232249,1732507839871,-5830.82,0.00045997,2]
[343232250,1732507839884,-500.0,0.00045997,2]
[343232251,1732507839898,-500.0,0.00045997,2]
[343232252,1732507839911,-500.0,0.00045997,2]
[343232253,1732507839921,-500.0,0.00045997,2]
[343232254,1732507839931,-500.0,0.00045997,2]
[343232255,1732507839940,-509.08254693,0.00045997,2]
[343232256,1732507839949,-727.86,0.00045997,2]
[343232257,1732507839959,-500.0,0.00045997,2]
[343232258,1732507839968,-393.03180853,0.00045997,2]
[343232259,1732507839978,-500.0,0.00045997,2]
[343232260,1732507839988,-451.93411641,0.00045997,2]
[343232261,1732507839997,-335.72063822,0.00045997,2]
[343232262,1732507840007,-2964.60890641,0.00045997,2]
[343232263,1732507840019,-1972.18109359,0.00045997,2]
[343232264,1732507840029,-500.0,0.00045997,2]
[343232265,1732507840039,-500.0,0.00045997,2]
[343232266,1732507840048,-258.86956061,0.00045997,2]
[343232267,1732507840060,-241.13043939,0.00045997,2]
[343232268,1732507840069,-971.94329461,0.00045997,2]
[343232281,1732507842733,-522.68317399,0.00045996,2]
[343232282,1732507842743,-105.77547206,0.00045997,2]
[343232283,1732507842756,-3890.76875602,0.00045997,2]
[343232284,1732507842891,-865.44847226,0.00045997,2]
[343232285,1732507842903,-1733.24044901,0.00045997,2]
[343232286,1732507842915,-398.14028288,0.00045997,2]
[343232359,1732509031980,-156.18,0.00041096,2]
[343232360,1732509031991,-506.15,0.00041779,2]
[343232361,1732509032001,-152.42,0.0004322,2]
[343232362,1732509032012,-1000.0,0.00043345,2]
[343232363,1732509032023,-169.58,0.00043377,2]
[343232364,1732509032034,-169.55,0.00043385,120]
[343232365,1732509032046,-1854.1,0.00043476,2]
[343232366,1732509032056,-1064.19163003,0.00043584,2]
[343232367,1732509032147,-1122.81836997,0.00043584,2]
[343232368,1732509032159,-5876.99,0.00043632,2]
[343232369,1732509032170,-200.0,0.00043797,2]
[343232370,1732509032182,-500.0,0.00043822,2]
[343232371,1732509032193,-155.37,0.00043826,120]
[343232372,1732509032204,-250.0,0.00043934,120]
[343232373,1732509032215,-278.83,0.00043974,2]
[343232374,1732509032227,-590.0,0.00043998,7]
[343232375,1732509032237,-529.655,0.00043998,69]
[343232377,1732509032248,-334.41,0.00043998,30]
[343232379,1732509032262,-1060.0,0.00043998,4]
[343232381,1732509032273,-500.0,0.00043999,2]
[343232383,1732509032283,-595.67318085,0.00043999,2]
[343232385,1732509032294,-644.53223008,0.00043999,2]
[343232387,1732509032309,-279.69990212,0.00043999,2]
[343232388,1732509032320,-500.0,0.00043999,2]
[343232389,1732509032331,-500.0,0.00043999,2]
[343232390,1732509032342,-973.32,0.00043999,2]
[343232391,1732509032353,-500.0,0.00043999,2]
[343232392,1732509032365,-500.0,0.00043999,2]
[343232393,1732509032376,-500.0,0.00043999,2]
[343232394,1732509032387,-500.0,0.00043999,2]
[343232395,1732509032398,-500.0,0.00043999,2]
[343232396,1732509032409,-500.0,0.00043999,2]
[343232398,1732509032421,-500.0,0.00043999,2]
[343232400,1732509032431,-500.0,0.00043999,2]
[343232402,1732509032442,-500.0,0.00043999,2]
[343232403,1732509032452,-500.0,0.00043999,2]
[343232404,1732509032462,-500.0,0.00043999,2]
[343232405,1732509032473,-500.0,0.00043999,2]
[343232406,1732509032483,-537.80395257,0.00043999,2]
[343232407,1732509032494,-252.34204141,0.00043999,2]
[343232408,1732509032506,-500.0,0.00043999,2]
[343232409,1732509032517,-500.0,0.00043999,2]
[343232410,1732509032528,-500.0,0.00043999,2]
[343232412,1732509032542,-500.0,0.00043999,2]
[343232414,1732509032556,-500.0,0.00043999,2]
[343232415,1732509032566,-200.97652889,0.00043999,2]
[343232416,1732509032576,-379.92226691,0.00043999,2]
[343232417,1732509032587,-500.0,0.00043999,2]
[343232418,1732509032598,-500.0,0.00043999,2]
[343232419,1732509032608,-500.0,0.00043999,2]
[343232420,1732509032619,-611.93055949,0.00043999,2]
[343232421,1732509032630,-395.85133329,0.00043999,2]
[343232422,1732509032640,-500.0,0.00043999,2]
[343232423,1732509032651,-500.0,0.00043999,2]
[343232424,1732509032662,-568.8,0.00043999,2]
[343232425,1732509032672,-872.24,0.00043999,2]
[343232426,1732509032683,-500.0,0.00043999,2]
[343232427,1732509032694,-159.2802903,0.00043999,2]
[343232428,1732509032704,-500.0,0.00043999,2]
[343232429,1732509032715,-500.0,0.00043999,2]
[343232430,1732509032725,-914.6,0.00043999,2]
[343232431,1732509032736,-500.0,0.00043999,2]
[343232432,1732509032746,-500.0,0.00043999,2]
[343232433,1732509032756,-551.8682241,0.00043999,2]
[343232434,1732509032767,-535.48789939,0.00043999,2]
[343232435,1732509032778,-500.0,0.00043999,2]
[343232436,1732509032788,-500.0,0.00043999,2]
[343232437,1732509032801,-500.0,0.00043999,120]
[343232438,1732509032811,-500.0,0.00043999,2]
[343232439,1732509032822,-500.0,0.00043999,2]
[343232440,1732509032832,-506.15,0.00044043,2]
[343232441,1732509032842,-200.0,0.00044078,2]
[343232442,1732509032852,-200.0,0.00044088,2]
[343232443,1732509032863,-200.0,0.00044099,2]
[343232444,1732509032873,-200.0,0.0004412,2]
[343232445,1732509032883,-176.52,0.00044126,120]
[343232446,1732509032894,-200.0,0.00044169,2]
[343232447,1732509032904,-635.03651094,0.00044446,15]
[343232448,1732509032914,-500.0,0.0004452,120]
[343232449,1732509032924,-535.56,0.00044545,2]
[343232450,1732509032934,-500.0,0.00044545,2]
[343232451,1732509032944,-500.0,0.00044545,2]
[343232452,1732509032954,-500.0,0.00044546,2]
[343232453,1732509032964,-500.0,0.00044546,2]
[343232454,1732509032974,-500.0,0.00044546,2]
[343232455,1732509032984,-1665.83,0.00044546,2]
[343232456,1732509032995,-517.64467559,0.00044546,2]
[343232457,1732509033005,-502.22,0.00044546,2]
[343232458,1732509033015,-500.0,0.00044546,2]
[343232459,1732509033026,-500.0,0.00044546,2]
[343232460,1732509033037,-500.0,0.00044546,2]
[343232461,1732509033049,-500.0,0.00044546,2]
[343232462,1732509033059,-500.0,0.00044546,2]
[343232463,1732509033069,-500.0,0.00044546,2]
[343232464,1732509033080,-524.53160594,0.00044546,120]
[343232465,1732509033095,-500.0,0.00044546,2]
[343232466,1732509033106,-500.0,0.00044546,2]
[343232467,1732509033117,-500.0,0.00044546,2]
[343232468,1732509033127,-500.0,0.00044546,2]
[343232469,1732509033139,-500.0,0.00044546,2]
[343232470,1732509033150,-500.0,0.00044546,2]
[343232471,1732509033159,-500.0,0.00044546,2]
[343232472,1732509033171,-500.0,0.00044546,2]
[343232473,1732509033180,-500.0,0.00044546,2]
[343232474,1732509033189,-500.0,0.00044546,2]
[343232475,1732509033199,-372.49934051,0.00044546,2]
[343232476,1732509033208,-500.0,0.00044546,2]
[343232477,1732509033218,-500.0,0.00044546,2]
[343232478,1732509033227,-168.0,0.00044546,2]
[343232479,1732509033561,-380.42771171,0.00044546,2]
[343232480,1732509033583,-500.0,0.00044546,2]
[343232481,1732509033597,-500.0,0.00044546,2]
[343232482,1732509033606,-500.0,0.00044546,2]
[343232483,1732509033615,-500.0,0.00044546,2]
[343232484,1732509033625,-158.931534,0.00044546,2]